bitfinex-derivatives/quotes_BTCF0:USTF0_20250218
["timestamp","ask_amount","ask_price","bid_price","bid_amount"]
[1739866905292,0.3618,95424.0,95415.0,0.00015716]
[1739866905492,0.5704189,95416.0,95415.0,0.00015716]
[1739866906488,0.5704189,95416.0,95415.0,0.00115716]
[1739866906686,0.5704189,95416.0,95415.0,0.00315716]
[1739866910985,0.75685503,95416.0,95415.0,0.00315716]
[1739866911694,0.75685503,95416.0,95415.0,0.21277826]
[1739866911886,0.75685503,95416.0,95415.0,0.26707826]
[1739866913100,0.75685503,95416.0,95415.0,0.32017826]
[1739866915499,0.54723613,95416.0,95415.0,0.32017826]
[1739866915900,0.75685503,95416.0,95415.0,0.32017826]
[1739866917694,0.75685503,95416.0,95415.0,0.11055716]
[1739866917892,0.75685503,95416.0,95415.0,0.05625716]
[1739866918395,0.5704189,95416.0,95415.0,0.05625716]
[1739866920601,0.5704189,95416.0,95415.0,0.26587826]
[1739866921989,0.63171712,95416.0,95415.0,0.26587826]
[1739866924792,0.42209822,95416.0,95415.0,0.26587826]
[1739866924995,0.42209822,95416.0,95415.0,0.19374]
[1739866925694,0.06129822,95416.0,95415.0,0.19374]
[1739866927307,0.21775022,95431.0,95430.0,0.2095881]
[1739866928492,0.22175022,95431.0,95430.0,0.2095881]
[1739866928695,0.22575022,95431.0,95430.0,0.2095881]
[1739866929106,0.25734026,95431.0,95430.0,0.2095881]
[1739866929707,0.25334026,95431.0,95430.0,0.22235082]
[1739866929904,0.25534026,95431.0,95430.0,0.2095881]
[1739866930402,0.25334026,95431.0,95430.0,0.2095881]
[1739866931102,0.25134026,95431.0,95430.0,0.2095881]
[1739866931403,0.25334026,95431.0,95430.0,0.2095881]
[1739866932000,0.24934026,95431.0,95430.0,0.2205881]
[1739866932500,0.24934026,95431.0,95430.0,0.2155881]
[1739866932704,0.24934026,95431.0,95430.0,0.2205881]
[1739866933205,0.00015688,95435.0,95434.0,0.2095793]
[1739866934403,0.00015688,95435.0,95434.0,0.2105793]
[1739866935110,0.00015688,95435.0,95434.0,0.2095793]
[1739866935311,0.209562,95442.0,95428.0,0.0568]
[1739866935506,0.209562,95442.0,95439.0,0.2095662]
[1739866935704,0.209562,95442.0,95441.0,0.209564]
[1739866935903,0.25638539,95443.0,95442.0,0.2095618]
[1739866936613,0.1087,95443.0,95442.0,0.2095618]
[1739866937520,0.1087,95443.0,95433.0,0.00015716]
[1739866937521,0.209575,95436.0,95433.0,0.00015716]
[1739866937808,0.3608,95434.0,95433.0,0.20973866]
[1739866938310,0.209575,95436.0,95435.0,0.2095771]
[1739866938610,0.570375,95436.0,95435.0,0.2095771]
[1739866938798,0.571375,95436.0,95435.0,0.2095771]
[1739866939003,0.2095793,95434.0,95433.0,0.00015716]
[1739866939414,0.2105793,95434.0,95433.0,0.00015716]
[1739866939806,0.2095793,95434.0,95433.0,0.00015716]
[1739866940309,0.2115793,95434.0,95433.0,0.20973866]
[1739866941014,0.2135793,95434.0,95433.0,0.20973866]
[1739866941509,0.2155793,95434.0,95433.0,0.20973866]
[1739866942715,0.004,95434.0,95433.0,0.20973866]
[1739866943213,0.003,95434.0,95433.0,0.20973866]
[1739866943415,0.002,95434.0,95433.0,0.20973866]
[1739866944121,0.001,95434.0,95433.0,0.20973866]
[1739866944418,0.001,95434.0,95433.0,0.21073866]
[1739866944717,0.2105793,95434.0,95433.0,0.21073866]
[1739866944919,0.27132914,95434.0,95433.0,0.21073866]
[1739866945815,0.27132914,95434.0,95433.0,0.20973866]
[1739866946001,0.27332914,95434.0,95433.0,0.20973866]
[1739866946810,0.27432914,95434.0,95433.0,0.20973866]
[1739866948311,0.27232914,95434.0,95433.0,0.20973866]
[1739866949003,0.2125793,95434.0,95433.0,0.20973866]
[1739866949816,0.2135793,95434.0,95433.0,0.20973866]
[1739866950419,0.2115793,95434.0,95433.0,0.20973866]
[1739866950619,0.2135793,95434.0,95433.0,0.20973866]
[1739866951617,0.2115793,95434.0,95433.0,0.20973866]
[1739866951817,0.2125793,95434.0,95433.0,0.20973866]
[1739866952212,0.2115793,95434.0,95433.0,0.20973866]
[1739866952411,0.2135793,95434.0,95433.0,0.20973866]
[1739866952718,0.2115793,95434.0,95433.0,0.20973866]
[1739866953617,0.2125793,95434.0,95433.0,0.20973866]
[1739866954519,0.2115793,95434.0,95433.0,0.20973866]
[1739866954818,0.2135793,95434.0,95433.0,0.20973866]
[1739866955014,0.2115793,95434.0,95433.0,0.20973866]
[1739866955319,0.2125793,95434.0,95433.0,0.20973866]
[1739866955920,0.2115793,95434.0,95433.0,0.20973866]
[1739866956217,0.2135793,95434.0,95433.0,0.20973866]
[1739866956520,0.27432917,95434.0,95433.0,0.20973866]
[1739866957718,0.27232917,95434.0,95433.0,0.20973866]
[1739866957910,0.27432917,95434.0,95433.0,0.20973866]
[1739866959411,0.27032917,95434.0,95433.0,0.21173866]
[1739866960110,0.27032917,95434.0,95433.0,0.21073866]
[1739866960316,0.27332917,95434.0,95433.0,0.21073866]
[1739866961112,0.27632917,95434.0,95433.0,0.20973866]
[1739866961508,0.27332917,95434.0,95433.0,0.20973866]
[1739866961713,0.27232917,95434.0,95433.0,0.20973866]
[1739866962224,0.27332917,95434.0,95433.0,0.20973866]
[1739866962426,0.27232917,95434.0,95433.0,0.20973866]
[1739866963127,0.27132917,95434.0,95433.0,0.20973866]
[1739866963320,0.27332917,95434.0,95433.0,0.20973866]
[1739866963520,0.2125793,95434.0,95433.0,0.20973866]
[1739866963721,0.5733793,95434.0,95433.0,0.20973866]
[1739866964326,0.5723793,95434.0,95433.0,0.20973866]
[1739866964529,0.5743793,95434.0,95433.0,0.20973866]
[1739866964930,0.5723793,95434.0,95433.0,0.20973866]
[1739866965727,0.5713793,95434.0,95433.0,0.20973866]
[1739866965921,0.5723793,95434.0,95433.0,0.20973866]
[1739866966521,0.5713793,95434.0,95433.0,0.20973866]
[1739866968121,0.5723793,95434.0,95433.0,0.20973866]
[1739866968523,0.5713793,95434.0,95433.0,0.20973866]
[1739866968823,0.5723793,95434.0,95433.0,0.20973866]
[1739866969435,0.5713793,95434.0,95433.0,0.20973866]
[1739866969626,0.5723793,95434.0,95433.0,0.20973866]
[1739866970632,0.002,95434.0,95433.0,0.20973866]
[1739866971127,0.001,95434.0,95433.0,0.22198521]
[1739866971526,0.002,95434.0,95433.0,0.22198521]
[1739866971935,0.21821526,95435.0,95433.0,0.01240371]
[1739866972130,0.21821526,95435.0,95434.0,0.3241793]
[1739866974733,0.068004,95443.0,95442.0,0.2095618]
[1739866975127,0.44117301,95444.0,95443.0,0.2095596]
[1739866975330,0.44049301,95444.0,95443.0,0.2095596]
[1739866977940,0.44249301,95444.0,95443.0,0.2095596]
[1739866978346,0.22427775,95444.0,95443.0,0.2095596]
[1739866989056,0.01472015,95444.0,95443.0,0.2095596]
[1739866990349,0.002,95444.0,95443.0,0.2095596]
[1739866991261,0.1133,95451.0,95441.0,0.3608]
[1739866991459,0.1133,95451.0,95450.0,0.2095442]
[1739866991661,0.322842,95451.0,95450.0,0.2095442]
[1739866991861,0.32803787,95451.0,95450.0,0.2095442]
[1739866992257,0.209564,95441.0,95440.0,0.0553]
[1739866993154,0.209564,95441.0,95440.0,0.2648662]
[1739866993354,0.22178136,95441.0,95440.0,0.2648662]
[1739866993554,0.27748136,95441.0,95440.0,0.2648662]
[1739866993755,0.27748136,95441.0,95440.0,0.2095662]
[1739866993962,0.27848136,95441.0,95440.0,0.2095662]
[1739866994257,0.2095663,95440.0,95439.0,0.2095677]
[1739866994557,0.2635663,95440.0,95439.0,0.2095677]
[1739866996361,0.1882774,95441.0,95440.0,0.2095662]
[1739866996855,0.1872774,95441.0,95440.0,0.2095662]
[1739866997847,0.1892774,95441.0,95440.0,0.2095662]
[1739866998459,0.002,95441.0,95440.0,0.2095662]
[1739867002961,0.001,95441.0,95440.0,0.2095662]
[1739867003163,0.001,95441.0,95440.0,0.2165662]
[1739867003464,0.068004,95450.0,95449.0,0.2095464]
[1739867003666,0.00015716,95452.0,95440.0,0.012]
[1739867003866,0.068004,95450.0,95443.0,0.0523899]
[1739867004059,0.068004,95450.0,95444.0,0.1141]
[1739867004260,0.00015716,95452.0,95451.0,0.209542]
[1739867006869,0.00015716,95452.0,95451.0,0.211542]
[1739867007070,0.00015716,95452.0,95451.0,0.212542]
[1739867010175,0.00015716,95452.0,95451.0,0.210542]
[1739867010667,0.00015716,95452.0,95451.0,0.209542]
[1739867034891,0.068004,95470.0,95467.0,0.2095069]
[1739867035197,0.1128,95469.0,95468.0,0.2095047]
[1739867036393,0.1148,95469.0,95468.0,0.2095047]
[1739867038300,0.1168,95469.0,95468.0,0.2095047]
[1739867039288,0.12876386,95469.0,95468.0,0.2213382]
[1739867039494,0.004,95469.0,95468.0,0.2213382]
[1739867041395,0.20207066,95479.0,95468.0,0.0118335]
[1739867041701,0.21362921,95479.0,95477.0,0.2094828]
[1739867041903,0.21362921,95479.0,95478.0,0.2094828]
[1739867042495,0.21562921,95479.0,95478.0,0.2094828]
[1739867043001,0.21362921,95479.0,95478.0,0.2094828]
[1739867043309,0.21562921,95479.0,95478.0,0.2104828]
[1739867043509,0.01355855,95479.0,95478.0,0.2104828]
[1739867044303,0.01355855,95479.0,95478.0,0.2114828]
[1739867044612,0.002,95479.0,95478.0,0.2114828]
[1739867045101,0.002,95479.0,95478.0,0.2124828]
[1739867045407,0.01365539,95479.0,95478.0,0.2124828]
[1739867045604,0.002,95479.0,95478.0,0.2124828]
[1739867046104,0.2094806,95479.0,95478.0,0.2114828]
[1739867046806,0.2094806,95479.0,95478.0,0.2104828]
[1739867047299,0.2094806,95479.0,95478.0,0.2114828]
[1739867047300,0.2214559,95479.0,95478.0,0.2114828]
[1739867047705,0.2214559,95479.0,95478.0,0.2104828]
[1739867047900,0.2214559,95479.0,95478.0,0.2094828]
[1739867049502,0.5702724,95483.0,95482.0,0.209474]
[1739867051310,0.5702724,95483.0,95478.0,0.001]
[1739867051311,0.2094806,95479.0,95478.0,0.001]
[1739867051511,0.2094893,95476.0,95472.0,0.0593]
[1739867051806,0.2094893,95476.0,95471.0,0.265196]
[1739867051807,0.2094959,95472.0,95471.0,0.0557]
[1739867052008,0.3608,95474.0,95459.0,0.00015716]
[1739867052204,0.2095223,95460.0,95459.0,0.00015716]
[1739867052401,0.2095223,95460.0,95459.0,0.20968166]
[1739867053002,0.1619,95462.0,95459.0,0.00015716]
[1739867053202,0.108,95462.0,95461.0,0.2095201]
[1739867053603,0.0115926,95464.0,95459.0,0.36095716]
[1739867053901,0.2094981,95471.0,95470.0,0.2094996]
[1739867054906,0.209509,95467.0,95459.0,0.00015716]
[1739867055213,0.2214843,95467.0,95466.0,0.2095091]
[1739867055912,0.0119753,95467.0,95466.0,0.2095091]
[1739867056213,0.209498,95472.0,95471.0,0.2094981]
[1739867056908,0.01171598,95472.0,95471.0,0.2094981]
[1739867057113,0.2094959,95472.0,95471.0,0.2094981]
[1739867057615,0.001,95472.0,95471.0,0.2094981]
[1739867059211,0.1127,95480.0,95479.0,0.2094806]
[1739867060316,0.1137,95480.0,95479.0,0.2094806]
[1739867061010,0.012588,95480.0,95479.0,0.2094806]
[1739867063306,0.2220664,95480.0,95479.0,0.2094806]
[1739867064715,0.2220664,95480.0,95479.0,0.2104806]
[1739867066907,0.2210664,95480.0,95479.0,0.2094806]
[1739867067415,0.011588,95480.0,95479.0,0.2094806]
[1739867067617,0.3608,95483.0,95482.0,0.209474]
[1739867068116,0.5702724,95483.0,95482.0,0.209474]
[1739867069118,0.58200574,95483.0,95482.0,0.209474]
[1739867070810,0.37253334,95483.0,95482.0,0.209474]
[1739867075521,0.15824787,95492.0,95475.0,0.4196]
[1739867075522,0.10354787,95492.0,95475.0,0.4196]
[1739867075729,0.10354787,95492.0,95491.0,0.2094542]
[1739867075924,0.5709299,95493.0,95492.0,0.2094521]
[1739867076118,0.5702499,95493.0,95492.0,0.2094521]
[1739867076427,0.2094499,95493.0,95492.0,0.2094521]
[1739867077127,0.22098645,95493.0,95492.0,0.2094521]
[1739867077827,0.22198645,95493.0,95492.0,0.2094521]
[1739867080930,0.01253655,95493.0,95492.0,0.2094521]
[1739867081332,0.22198645,95493.0,95492.0,0.2094521]
[1739867082330,0.01253655,95493.0,95492.0,0.2094521]
[1739867082732,0.001,95493.0,95492.0,0.2094521]
[1739867083423,0.001,95493.0,95490.0,0.0523638]
[1739867083624,0.001,95493.0,95492.0,0.2094521]
[1739867083927,0.2094408,95498.0,95490.0,0.0523638]
[1739867084133,0.001,95493.0,95492.0,0.2094521]
[1739867084528,0.001,95493.0,95485.0,0.1667]
[1739867084724,0.001,95493.0,95492.0,0.2094521]
[1739867087038,0.2094421,95497.0,95496.0,0.2094433]
[1739867087233,0.01272052,95498.0,95497.0,0.2094411]
[1739867087634,0.01172052,95498.0,95497.0,0.2094411]
[1739867087933,0.00519884,95499.0,95498.0,0.2094389]
[1739867090534,0.00619884,95499.0,95498.0,0.2094389]
[1739867096827,0.001,95499.0,95498.0,0.2094389]
[1739867105743,0.2104367,95499.0,95498.0,0.2094389]
[1739867106039,0.3246367,95499.0,95498.0,0.2094389]
[1739867106737,0.2104367,95499.0,95498.0,0.2094389]
[1739867107241,0.001,95499.0,95498.0,0.2094389]
[1739867109430,0.2104367,95499.0,95498.0,0.2094389]
[1739867110942,0.2094433,95496.0,95495.0,0.0563]
[1739867111248,0.2094521,95492.0,95491.0,0.3608]
[1739867112344,0.2094521,95492.0,95491.0,0.5702542]
[1739867112741,0.2094521,95492.0,95491.0,0.2094542]
[1739867113548,0.2104521,95492.0,95491.0,0.2094542]
[1739867113752,0.2094674,95486.0,95485.0,0.209467]
[1739867114350,0.2094674,95485.0,95484.0,0.0576]
[1739867114557,0.3219674,95485.0,95484.0,0.0576]
[1739867115249,0.3219674,95485.0,95484.0,0.2670696]
[1739867115250,0.33358235,95485.0,95484.0,0.2670696]
[1739867116858,0.33458235,95485.0,95484.0,0.2670696]
[1739867117262,0.33358235,95485.0,95484.0,0.2670696]
[1739867117556,0.33458235,95485.0,95484.0,0.2670696]
[1739867118756,0.33458235,95485.0,95484.0,0.0576]
[1739867119259,0.12511495,95485.0,95476.0,0.0559]
[1739867119464,0.2094718,95483.0,95477.0,0.0573]
[1739867120357,0.2094718,95483.0,95475.0,0.2094877]
[1739867120955,0.2094718,95483.0,95466.0,0.3275071]
[1739867121157,0.2094937,95473.0,95466.0,0.118]
[1739867121464,0.5702937,95473.0,95466.0,0.3275072]
[1739867121864,0.3608,95473.0,95472.0,0.21106703]
[1739867122965,0.3608,95473.0,95472.0,0.21306703]
[1739867123467,0.5702937,95473.0,95472.0,0.21606703]
[1739867123961,0.3608,95473.0,95472.0,0.21606703]
[1739867124568,0.13585118,95482.0,95472.0,0.21606703]
[1739867124569,0.10352415,95482.0,95472.0,0.00657113]
[1739867124761,0.10352415,95482.0,95481.0,0.2094762]
[1739867125064,0.37235435,95485.0,95484.0,0.2094696]
[1739867126068,0.58182175,95485.0,95484.0,0.2094696]
[1739867128666,0.58282175,95485.0,95484.0,0.2094696]
[1739867135877,0.2094825,95480.0,95479.0,0.2094789]
[1739867136071,0.2094828,95478.0,95477.0,0.0582]
[1739867137076,0.2084828,95478.0,95477.0,0.268685]
[1739867138179,0.37235435,95485.0,95484.0,0.2094696]
[1739867138370,0.20352415,95500.0,95491.0,0.2094542]
[1739867139476,0.01110007,95494.0,95491.0,0.2094542]
[1739867139979,0.21886283,95493.0,95491.0,0.2094542]
[1739867140181,0.00115688,95492.0,95491.0,0.2094542]
[1739867140583,0.00315688,95492.0,95491.0,0.2094542]
[1739867144680,0.03798195,95500.0,95499.0,0.2094367]
[1739867145968,0.04905479,95500.0,95499.0,0.2094367]
[1739867146781,0.05005479,95500.0,95499.0,0.2104367]
[1739867147172,0.001,95500.0,95499.0,0.2104367]
[1739867147984,0.001,95500.0,95499.0,0.2687367]
[1739867148181,0.001,95500.0,95499.0,0.2697367]
[1739867148781,0.001,95500.0,95499.0,0.2707367]
[1739867148983,0.01147361,95502.0,95499.0,0.0623]
[1739867149283,0.31293705,95510.0,95500.0,0.2094345]
[1739867149486,0.2094157,95509.0,95500.0,0.2094345]
[1739867150081,0.10352415,95510.0,95500.0,0.2094345]
[1739867150278,0.2094176,95508.0,95500.0,0.2094345]
[1739867150678,0.2094176,95508.0,95500.0,0.2124345]
[1739867150884,0.2094176,95508.0,95500.0,0.2134345]
[1739867151285,0.2094176,95508.0,95500.0,0.2124345]
[1739867151587,0.10352415,95510.0,95500.0,0.2134345]
[1739867151779,0.1109,95515.0,95514.0,0.2094038]
[1739867151780,0.2094019,95515.0,95514.0,0.2094038]
[1739867152796,0.22077136,95515.0,95514.0,0.2094038]
[1739867154883,0.22077136,95515.0,95514.0,0.1819566]
[1739867155686,0.01136946,95515.0,95514.0,0.1819566]
[1739867155890,0.3235899,95521.0,95516.0,0.2093994]
[1739867156089,0.3833932,95519.0,95516.0,0.2093994]
[1739867156380,0.2093932,95519.0,95516.0,0.2093994]
[1739867156581,0.2093932,95519.0,95510.0,0.0584]
[1739867156780,0.2093932,95519.0,95518.0,0.209395]
[1739867157181,0.22049021,95519.0,95518.0,0.209395]
[1739867166000,0.01109701,95519.0,95518.0,0.209395]
[1739867166199,0.36156,95523.0,95518.0,0.209395]
[1739867166394,0.5701875,95523.0,95522.0,0.2093863]
[1739867166700,0.3608,95523.0,95522.0,0.2093863]
[1739867167601,0.37239525,95523.0,95522.0,0.2093863]
[1739867173803,0.01159525,95523.0,95522.0,0.2093863]
[1739867173998,0.2093796,95526.0,95519.0,0.1138]
[1739867174200,0.2093796,95526.0,95525.0,0.2093797]
[1739867174701,0.2209967,95526.0,95525.0,0.2093797]
[1739867176306,0.0116171,95526.0,95525.0,0.2093797]
[1739867176498,0.2093709,95529.0,95519.0,0.1138]
[1739867176698,0.28854127,95529.0,95528.0,0.2093731]
[1739867177008,0.22066712,95529.0,95528.0,0.2093731]
[1739867178109,0.22066712,95529.0,95528.0,0.2103731]
[1739867179305,0.22066712,95529.0,95528.0,0.143746]
[1739867182498,0.29760413,95529.0,95528.0,0.143746]
[1739867186413,0.22066712,95529.0,95528.0,0.143746]
[1739867194118,0.01129622,95529.0,95528.0,0.143746]
[1739867194320,0.42847235,95532.0,95531.0,0.2093665]
[1739867194618,0.21910635,95532.0,95531.0,0.2093665]
[1739867195608,0.42847075,95532.0,95531.0,0.2093665]
[1739867196014,0.44261877,95532.0,95531.0,0.2093665]
[1739867196615,0.44261877,95532.0,95531.0,0.2103665]
[1739867196815,0.44261877,95532.0,95531.0,0.2113665]
[1739867197313,0.44261877,95532.0,95531.0,0.2103665]
[1739867197513,0.22351242,95532.0,95531.0,0.2093665]
[1739867201017,0.22351242,95532.0,95531.0,0.14936599]
[1739867204325,0.3004448,95532.0,95531.0,0.14936599]
[1739867207618,0.22351242,95532.0,95531.0,0.14936599]
[1739867208218,0.01414802,95532.0,95531.0,0.14936599]
[1739867208426,0.2093569,95536.0,95529.0,0.1083]
[1739867208618,0.2093569,95536.0,95532.0,0.2093635]
[1739867208823,0.2093579,95535.0,95532.0,0.2093635]
[1739867209229,0.24934026,95539.0,95537.0,0.2093532]
[1739867209424,0.24934026,95539.0,95538.0,0.1127]
[1739867209817,0.24934026,95539.0,95538.0,0.1689]
[1739867210733,0.01399839,95540.0,95539.0,0.209349]
[1739867210933,0.2093386,95544.0,95538.0,0.1689]
[1739867211128,0.2093386,95544.0,95543.0,0.2093402]
[1739867212637,0.22386055,95544.0,95543.0,0.2093402]
[1739867212828,0.01452195,95544.0,95543.0,0.2093402]
[1739867213026,0.18444341,95550.0,95543.0,0.2093402]
[1739867213221,0.2093359,95545.0,95544.0,0.2093381]
[1739867214629,0.2093285,95549.0,95538.0,0.1689]
[1739867214834,0.22317449,95549.0,95548.0,0.2093293]
[1739867215230,0.01384599,95549.0,95548.0,0.2093293]
[1739867215417,0.25460952,95550.0,95538.0,0.18320279]
[1739867215625,0.25460952,95550.0,95549.0,0.2093271]
[1739867216727,0.25460952,95550.0,95549.0,0.3243271]
[1739867216930,0.47847271,95550.0,95549.0,0.3263271]
[1739867217928,0.22913245,95550.0,95549.0,0.3263271]
[1739867218124,0.01980755,95550.0,95549.0,0.3263271]
[1739867218322,0.00526926,95550.0,95549.0,0.3263271]
[1739867223034,0.3608,95555.0,95554.0,0.2093161]
[1739867225338,0.3608,95555.0,95554.0,0.2103161]
[1739867225647,0.21918968,95563.0,95561.0,0.2093008]
[1739867225843,0.23312082,95563.0,95561.0,0.2093008]
[1739867226535,0.31892054,95562.0,95561.0,0.2093008]
[1739867226736,0.00532621,95562.0,95561.0,0.2093008]
[1739867228245,0.24934026,95570.0,95569.0,0.2092833]
[1739867229044,0.24934026,95570.0,95569.0,0.22320876]
[1739867229231,0.24934026,95570.0,95569.0,0.22420876]
[1739867229633,0.24934026,95570.0,95569.0,0.22520876]
[1739867229944,0.15954026,95570.0,95569.0,0.22520876]
[1739867230154,0.06787415,95580.0,95579.0,0.2092614]
[1739867230338,0.3608,95582.0,95581.0,0.209257]
[1739867232049,0.2092449,95587.0,95586.0,0.2092461]
[1739867233547,0.2092449,95587.0,95586.0,0.2112461]
[1739867238052,0.0143105,95588.0,95587.0,0.2092439]
[1739867238257,0.3608,95592.0,95586.0,0.002]
[1739867238442,0.2092376,95590.0,95589.0,0.2092364]
[1739867239551,0.22352239,95590.0,95589.0,0.2102364]
[1739867239942,0.22352239,95590.0,95589.0,0.2112364]
[1739867241852,0.22352239,95590.0,95589.0,0.21118257]
[1739867242055,0.3608,95592.0,95590.0,0.2092368]
[1739867243245,0.3608,95592.0,95590.0,0.2102368]
[1739867243549,0.3608,95592.0,95590.0,0.2112368]
[1739867245942,0.3608,95592.0,95590.0,0.22562086]
[1739867246749,0.2092273,95595.0,95590.0,0.002]
[1739867247342,0.2357483,95600.0,95590.0,0.01590048]
[1739867247343,0.3092164,95600.0,95590.0,0.01590048]
[1739867247546,0.16787415,95600.0,95590.0,0.01590048]
[1739867247747,0.209222,95597.0,95596.0,0.2092239]
[1739867247947,0.2092176,95599.0,95598.0,0.209219]
[1739867248750,0.1,95600.0,95590.0,0.01590048]
[1739867248956,0.2092253,95596.0,95594.0,0.2092282]
[1739867249253,0.2092264,95595.0,95594.0,0.2092282]
[1739867250248,0.2092264,95595.0,95594.0,0.2102282]
[1739867250757,0.2092264,95595.0,95594.0,0.2092282]
[1739867250957,0.2092264,95595.0,95594.0,0.2102282]
[1739867251359,0.1,95600.0,95599.0,0.2092176]
[1739867251561,0.3092154,95600.0,95599.0,0.2092176]
[1739867252258,0.11450595,95600.0,95599.0,0.2092176]
[1739867252454,0.1,95600.0,95599.0,0.2112176]
[1739867253053,0.1,95600.0,95599.0,0.002]
[1739867253254,0.3092154,95600.0,95599.0,0.002]
[1739867253559,0.3092154,95600.0,95599.0,0.2112176]
[1739867260570,0.3092154,95600.0,95599.0,0.002]
[1739867263363,0.13028023,95600.0,95599.0,0.002]
[1739867267963,0.2092461,95586.0,95585.0,0.2661483]
[1739867268267,0.2092405,95589.0,95588.0,0.2092414]
[1739867268658,0.2092461,95586.0,95585.0,0.0569]
[1739867269063,0.2092384,95590.0,95587.0,0.2092432]
[1739867269469,0.2092417,95588.0,95587.0,0.2092432]
[1739867270076,0.22257678,95588.0,95587.0,0.2092432]
[1739867270262,0.001,95590.0,95585.0,0.0569]
[1739867270567,0.001,95590.0,95589.0,0.2092395]
[1739867270568,0.2102378,95590.0,95589.0,0.2092395]
[1739867270767,0.2092378,95590.0,95589.0,0.2092395]
[1739867271272,0.0588,95599.0,95592.0,0.2092311]
[1739867271462,0.2092286,95594.0,95593.0,0.0579]
[1739867271858,0.2092286,95594.0,95593.0,0.2671308]
[1739867272063,0.0588,95599.0,95593.0,0.0579]
[1739867272263,0.0588,95599.0,95598.0,0.2092198]
[1739867272264,0.2092176,95599.0,95598.0,0.2092198]
[1739867272971,0.22258762,95599.0,95598.0,0.2092198]
[1739867273973,0.22358762,95599.0,95598.0,0.2102198]
[1739867274375,0.22358762,95599.0,95598.0,0.001]
[1739867274563,0.22358762,95599.0,95598.0,0.002]
[1739867275475,0.001,95599.0,95598.0,0.2112198]
[1739867278274,0.3608,95605.0,95598.0,0.002]
[1739867278475,0.0052953,95610.0,95609.0,0.2091957]
[1739867278975,0.3660953,95610.0,95598.0,0.002]
[1739867279170,0.2092176,95599.0,95598.0,0.002]
[1739867280167,0.2092176,95599.0,95598.0,0.001]
[1739867280364,0.2092176,95599.0,95598.0,0.002]
[1739867280568,0.22288117,95599.0,95598.0,0.2112198]
[1739867280975,0.22288117,95599.0,95598.0,0.2102198]
[1739867281169,0.22288117,95599.0,95598.0,0.2112198]
[1739867281576,0.3608,95602.0,95601.0,0.2092132]
[1739867283286,0.3608,95602.0,95601.0,0.2102132]
[1739867283577,0.3608,95602.0,95601.0,0.22472489]
[1739867284076,0.5700111,95602.0,95601.0,0.002]
[1739867284580,0.5700111,95602.0,95601.0,0.2112132]
[1739867286580,0.5700111,95602.0,95601.0,0.002]
[1739867286966,0.3608,95602.0,95601.0,0.2112132]
[1739867288274,0.5700111,95602.0,95601.0,0.002]
[1739867289982,0.5700111,95602.0,95601.0,0.2112132]
[1739867290284,0.5700111,95602.0,95601.0,0.002]
[1739867291177,0.3608,95602.0,95601.0,0.002]
[1739867291376,0.3608,95602.0,95601.0,0.2112132]
[1739867291883,0.5700111,95602.0,95601.0,0.002]
[1739867293181,0.6272111,95602.0,95601.0,0.002]
[1739867297700,0.6272111,95602.0,95601.0,0.2112132]
[1739867299384,0.6272111,95602.0,95601.0,0.002]
[1739867300788,0.2664111,95602.0,95601.0,0.002]
[1739867304591,0.2664111,95602.0,95601.0,0.2112132]
[1739867305491,0.2664111,95602.0,95601.0,0.002]
[1739867309794,0.6272111,95602.0,95601.0,0.002]
[1739867318499,0.2092308,95593.0,95571.0,0.30353885]
[1739867318703,0.5700308,95593.0,95577.0,0.054]
[1739867318894,0.2092636,95578.0,95577.0,0.054]
[1739867321206,0.01290846,95578.0,95576.0,0.18867955]
[1739867321399,0.209268,95576.0,95572.0,0.0569]
[1739867322198,0.209268,95576.0,95570.0,0.3608]
[1739867322404,0.416,95576.0,95568.0,0.00015691]
[1739867322605,0.2092833,95569.0,95568.0,0.00015691]
[1739867325112,0.2092833,95569.0,95568.0,0.00115691]
[1739867327605,0.2093249,95550.0,95549.0,0.00070429]
[1739867327804,0.2093249,95550.0,95549.0,0.0544]
[1739867329313,0.41968,95557.0,95551.0,0.2093206]
[1739867329512,0.2093205,95552.0,95551.0,0.2093206]
[1739867329805,0.2093205,95552.0,95549.0,0.0544]
[1739867330711,0.2093249,95550.0,95549.0,0.0544]
[1739867331011,0.0546,95556.0,95549.0,0.0544]
[1739867331012,0.001,95552.0,95549.0,0.0544]
[1739867331207,0.001,95552.0,95549.0,0.2637271]
[1739867331410,0.0546,95556.0,95549.0,0.2637271]
[1739867332111,0.06717307,95556.0,95549.0,0.2637271]
[1739867332313,0.00524921,95552.0,95549.0,0.2637271]
[1739867332708,0.21457011,95552.0,95549.0,0.2637271]
[1739867333815,0.2093229,95551.0,95549.0,0.2637271]
[1739867334312,0.00524921,95552.0,95549.0,0.2637271]
[1739867334502,0.2093249,95550.0,95549.0,0.2637271]
[1739867334698,0.2093249,95550.0,95549.0,0.0544]
[1739867339018,0.36604921,95552.0,95549.0,0.0544]
[1739867339216,0.36604921,95552.0,95550.0,0.209324]
[1739867339413,0.36604921,95552.0,95551.0,0.2093227]
[1739867339714,0.2093249,95550.0,95549.0,0.0544]
[1739867341222,0.00524921,95552.0,95549.0,0.2637271]
[1739867342617,0.2093249,95550.0,95549.0,0.2637271]
[1739867343528,0.2093249,95550.0,95549.0,0.0544]
[1739867344616,0.2093249,95550.0,95549.0,0.2637271]
[1739867347820,0.2093249,95550.0,95549.0,0.0544]
[1739867348019,0.2093293,95548.0,95547.0,0.06584]
[1739867349323,0.2093293,95548.0,95547.0,0.06684]
[1739867350525,0.00524921,95552.0,95547.0,0.06684]
[1739867350725,0.00524921,95552.0,95551.0,0.2093227]
[1739867351525,0.00524921,95552.0,95548.0,0.0566]
[1739867351725,0.2093233,95551.0,95548.0,0.0566]
[1739867352126,0.00524921,95552.0,95551.0,0.2093227]
[1739867352526,0.00624921,95552.0,95551.0,0.2093227]
[1739867352729,0.00724921,95552.0,95551.0,0.2093227]
[1739867354739,0.00724921,95552.0,95547.0,0.06584]
[1739867354927,0.2093293,95548.0,95547.0,0.06584]
[1739867355130,0.21657181,95552.0,95550.0,0.2093246]
[1739867355425,0.2093227,95551.0,95550.0,0.2093246]
[1739867356820,0.2103227,95551.0,95550.0,0.2093246]
[1739867372934,0.001,95551.0,95550.0,0.2093246]
[1739867375226,0.001,95551.0,95547.0,0.06584]
[1739867375432,0.2093293,95548.0,95547.0,0.06584]
[1739867376033,0.2093293,95548.0,95547.0,0.2751715]
[1739867377333,0.2093293,95548.0,95547.0,0.2761715]
[1739867377934,0.0592,95550.0,95549.0,0.2093271]
[1739867378336,0.2685249,95550.0,95549.0,0.2093271]
[1739867379946,0.2685249,95550.0,95549.0,0.2103271]
[1739867381034,0.2685249,95550.0,95549.0,0.2093271]
[1739867381235,0.0592,95550.0,95549.0,0.2093271]